Workbook

Sheet FIND YOUR GHG INVENTORY DATA
C6: ENTER THE NAME OF LOCAL GOVERNMENT: | D6: Mid-Hudson Region
D7: (i.e., Town of Cortlandt, Village of Dobbs Ferry, Orange County, etc.)
B10: TABLE 1: Community GHG Inventory (2010) | D10: FIGURE 1: | E10: Community GHG Emissions by Sector (2010)
B11: =D6 -> Mid-Hudson Region | E11: =D6 -> Mid-Hudson Region
B13: GHG EMISSION SECTORS | C13: MTCO2e*
B14: Residential | C14: =VLOOKUP($D$6,Table2[],2,FALSE) -> 5616184.806
B15: Commercial | C15: =VLOOKUP($D$6,Table2[],3,FALSE) -> 4853359.753
B16: Industrial | C16: =VLOOKUP($D$6,Table2[],4,FALSE) -> 1692830.371
B17: Transportation | C17: =VLOOKUP($D$6,Table2[],5,FALSE) -> 12177276.37
B18: Solid Waste | C18: =VLOOKUP($D$6,Table2[],6,FALSE) -> 350204.0215
B19: Wastewater Treatment | C19: =VLOOKUP($D$6,Table2[],7,FALSE) -> 222872.9467
B20: Industrial Processes | C20: =VLOOKUP($D$6,Table2[],8,FALSE) -> 885114.8517
B21: Agriculture | C21: =VLOOKUP($D$6,Table2[],9,FALSE) -> 149887.4863
B22: Energy Supply | C22: =VLOOKUP($D$6,Table2[],10,FALSE) -> 836500.2288
B23: Total Emissions | C23: =VLOOKUP($D$6,Table2[],11,FALSE) -> 29561344.39
B24: Population | C24: =VLOOKUP($D$6,Table2[],12,FALSE) -> 2290851
B25: Per Capita Emissions | C25: =VLOOKUP($D$6,Table2[],13,FALSE) -> 12.90408865
B26: *Metric Tons of Carbon Dioxide Equivalent
D29: Do you want to compare your emissions to another community?
C30: ENTER THE NAME OF LOCAL GOVERNMENT: | D30: Ulster County
D31: (i.e., Town of Cortlandt, Village of Dobbs Ferry, Orange County, etc.)
B33: TABLE 2: Community GHG Inventory (2010) | D33: FIGURE 2: | E33: Community GHG Emissions by Sector (2010)
B34: =D30 -> Ulster County | E34: =D30 -> Ulster County
B36: GHG EMISSION SECTORS | C36: MTCO2e*
B37: Residential | C37: =VLOOKUP($D$30,Table2[],2,FALSE) -> 451255.7726
B38: Commercial | C38: =VLOOKUP($D$30,Table2[],3,FALSE) -> 349919.2647
B39: Industrial | C39: =VLOOKUP($D$30,Table2[],4,FALSE) -> 100289.6204
B40: Transportation | C40: =VLOOKUP($D$30,Table2[],5,FALSE) -> 1151439.794
B41: Solid Waste | C41: =VLOOKUP($D$30,Table2[],6,FALSE) -> 36202.62139
B42: Wastewater Treatment | C42: =VLOOKUP($D$30,Table2[],7,FALSE) -> 17754.42953
B43: Industrial Processes | C43: =VLOOKUP($D$30,Table2[],8,FALSE) -> 67737.65197
B44: Agriculture | C44: =VLOOKUP($D$30,Table2[],9,FALSE) -> 15645.11532
B45: Energy Supply | C45: =VLOOKUP($D$30,Table2[],10,FALSE) -> 39744.37773
B46: Total Emissions | C46: =VLOOKUP($D$30,Table2[],11,FALSE) -> 2052893.59
B47: Population | C47: =VLOOKUP($D$30,Table2[],12,FALSE) -> 182493
B48: Per Capita Emissions | C48: =VLOOKUP($D$30,Table2[],13,FALSE) -> 11.24916347
B49: *Metric Tons of Carbon Dioxide Equivalent
B52: Mid-Hudson Regional GHG Inventory 2010 Total Emissions by Local Government and Sector, MT CO2e
B53: Name of Local Government | C53: Residential | D53: Commercial | E53: Industrial | F53: Mobile Energy | G53: Solid Waste | H53: Wastewater Treatment | I53: Industrial Processes | J53: Agriculture | K53: Energy Supply | L53: Total | M53: Population | N53: Per Capita Emissions
A54: Dutchess County | B54: Mid-Hudson Region | C54: =SUM(C55, C85, C128, C138, C163, C185, C210) -> 5616184.806 | D54: =SUM(D55, D85, D128, D138, D163, D185, D210) -> 4853359.753 | E54: 1692830.371 | F54: 12177276.37 | G54: 350204.0215 | H54: 222872.9467 | I54: 885114.8517 | J54: 149887.4863 | K54: 836500.2288 | L54: =SUM(L55, L85, L128, L138, L163, L185, L210) -> 29561344.39 | M54: =SUM(M55, M85, M128, M138, M163, M185, M210) -> 2290851 | N54: =L54/M54 -> 12.90408865
A55: Dutchess County | B55: Dutchess County | C55: 679471.2572 | D55: 653897.319 | E55: 517678.9795 | F55: 1482623.462 | G55: 22883.37068 | H55: 28942.09495 | I55: 110421.4332 | J55: 32314.50524 | K55: 103757.3368 | L55: 3268721.731 | M55: 297488 | N55: =L55/M55 -> 10.98774314
A56: Dutchess County | B56: City of Beacon | C56: 29945.78062 | D56: 45714.63921 | E56: 94059.5954 | F56: 69485.17624 | G56: 1195.444736 | H56: 1511.957113 | I56: 5768.499884 | J56: 87.38491748 | K56: 4590.049993 | L56: 252358.5281 | M56: 15541 | N56: =L56/M56 -> 16.23824259
A57: Dutchess County | B57: Town of Beekman | C57: 30204.17942 | D57: 16725.78256 | E57: 695.394157 | F57: 53723.26281 | G57: 1124.6765 | H57: 1422.451898 | I57: 5427.014787 | J57: 1050.532149 | K57: 1846.646577 | L57: 112219.9409 | M57: 14621 | N57: 7.675257565
A58: Dutchess County | B58: Town of Clinton | C58: 12421.09773 | D58: 5935.082504 | E58: 63.66124707 | F58: 19025.83204 | G58: 331.6876458 | H58: 419.5070504 | I58: 1600.525803 | J58: 1668.788575 | K58: 563.2889714 | L58: 42029.47157 | M58: 4312 | N58: 9.74709452
A59: Dutchess County | B59: Town of Dover | C59: 21321.94345 | D59: 15074.54272 | E59: 2501.694097 | F59: 44306.20042 | G59: 669.1444412 | H59: 846.3107216 | I59: 3228.890064 | J59: 1257.395139 | K59: 1550.124398 | L59: 90756.24546 | M59: 8699 | N59: 10.43295154
A60: Dutchess County | B60: Town of East Fishkill | C60: 77941.66808 | D60: 44037.93463 | E60: 161969.6785 | F60: 124358.3496 | G60: 2232.968615 | H60: 2824.181393 | I60: 10774.96835 | J60: 1179.440591 | K60: 15676.74887 | L60: 440995.9386 | M60: 29029 | N60: 15.19156494
A61: Dutchess County | B61: Town of Fishkill | C61: 46885.70066 | D61: 66909.10593 | E61: 330.0075398 | F61: 104720.2196 | G61: 1700.51456 | H61: 2150.75194 | I61: 8205.664174 | J61: 334.6531467 | K61: 6010.405592 | L61: 237247.0231 | M61: 22107 | N61: 10.73176022
A62: Dutchess County | B62: Town of Hyde Park | C62: 49216.61332 | D62: 37014.48016 | E62: 203.1712955 | F62: 98406.20945 | G62: 1659.284371 | H62: 2098.605423 | I62: 8006.711987 | J62: 530.241575 | K62: 2667.263317 | L62: 199802.5809 | M62: 21571 | N62: 9.262555324
A63: Dutchess County | B63: Town of LaGrange | C63: 39239.15131 | D63: 23574.99815 | E63: 518.5508429 | F63: 68817.20043 | G63: 1209.982993 | H63: 1530.344597 | I63: 5838.6528 | J63: 1830.452734 | K63: 1945.750372 | L63: 144505.0842 | M63: 15730 | N63: 9.186591496
A64: Dutchess County | B64: Town of Milan | C64: 6655.895921 | D64: 3245.451177 | E64: 1.316346642 | F64: 12008.15908 | G64: 182.30513 | H64: 230.5732165 | I64: 879.6953043 | J64: 965.8236738 | K64: 315.5984049 | L64: 24484.81826 | M64: 2370 | N64: 10.33114694
A65: Dutchess County | B65: Town of North East | C65: 8097.253257 | D65: 5857.617196 | E65: 188.5780043 | F65: 13915.16134 | G65: 233.1505692 | H65: 294.8807676 | I65: 1125.044923 | J65: 12.63040416 | K65: 531.2069919 | L65: 30255.52345 | M65: 3031 | N65: 9.982026872
A66: Dutchess County | B66: Town of Pawling | C66: 23867.73676 | D66: 14951.28042 | E66: 2994.711306 | F66: 38760.44774 | G66: 650.9908502 | H66: 823.3506883 | I66: 3141.291713 | J66: 1063.717187 | K66: 1683.219936 | L66: 87936.74659 | M66: 8463 | N66: 10.39072983
A67: Dutchess County | B67: Town of Pine Plains | C67: 6918.316698 | D67: 3913.265977 | E67: 25.89571583 | F67: 12098.29448 | G67: 190.2280955 | H67: 240.593909 | I67: 917.926788 | J67: 2643.528228 | K67: 368.3088712 | L67: 27316.35876 | M67: 2473 | N67: 11.04583856
A68: Dutchess County | B68: Town of Pleasant Valley | C68: 22967.95925 | D68: 11717.36287 | E68: 668.4090508 | F68: 46789.24589 | G68: 743.9895431 | H68: 940.9722151 | I68: 3590.047672 | J68: 1320.916549 | K68: 964.8244955 | L68: 89703.72754 | M68: 9672 | N68: 9.274578943
A69: Dutchess County | B69: City of Poughkeepsie | C69: 61269.98123 | D69: 88475.49752 | E69: 1727.675027 | F69: 145067.2784 | G69: 2518.118454 | H69: 3184.829036 | I69: 12150.93058 | J69: 0 | K69: 7941.321186 | L69: 322335.6315 | M69: 32736 | N69: 9.846518556
A70: Dutchess County | B70: Town of Poughkeepsie | C70: 90650.25721 | D70: 155145.2882 | E70: 60264.8823 | F70: 186459.0305 | G70: 3333.876219 | H70: 4216.571213 | I70: 16087.28868 | J70: 341.3088564 | K70: 16565.89089 | L70: 533064.3941 | M70: 43341 | N70: 12.29930999
A71: Dutchess County | B71: Town of Red Hook | C71: 25088.00545 | D71: 19802.15504 | E71: 31.04762424 | F71: 40037.63933 | G71: 870.6800701 | H71: 1101.206007 | I71: 4201.380232 | J71: 1582.030681 | K71: 1687.124653 | L71: 94401.26909 | M71: 11319 | N71: 8.340071481
A72: Dutchess County | B72: Town of Rhinebeck | C72: 19851.13122 | D72: 17277.21913 | E72: 203.8521644 | F72: 34323.78995 | G72: 580.6072241 | H72: 734.3319148 | I72: 2801.662513 | J72: 1070.927322 | K72: 1487.247521 | L72: 78330.76896 | M72: 7548 | N72: 10.37768534
A73: Dutchess County | B73: Town of Stanford | C73: 11824.56351 | D73: 6162.555908 | E73: 4.607213246 | F73: 19445.06664 | G73: 294.0727898 | H73: 371.933083 | I73: 1419.01905 | J73: 4079.29539 | K73: 562.7056418 | L73: 44163.81923 | M73: 3823 | N73: 11.55213686
A74: Dutchess County | B74: Town of Union Vale | C74: 12776.74126 | D74: 6314.755062 | E74: 13.45850963 | F74: 23034.77399 | G74: 375.1485734 | H74: 474.4749269 | I74: 1810.242194 | J74: 2152.640668 | K74: 633.8773779 | L74: 47586.11256 | M74: 4877 | N74: 9.757250884
A75: Dutchess County | B75: Town of Wappinger | C75: 58451.70941 | D75: 48795.77268 | E75: 12887.10529 | F75: 126986.8276 | G75: 2080.586142 | H75: 2631.453316 | I75: 10039.66185 | J75: 540.0599139 | K75: 5535.131377 | L75: 267948.3076 | M75: 27048 | N75: 9.906400014
A76: Dutchess County | B76: Town of Washington | C76: 13494.79151 | D76: 9507.888069 | E76: 71.4004575 | F76: 23344.24235 | G76: 364.6871819 | H76: 461.2437213 | I76: 1759.761788 | J76: 5483.182996 | K76: 872.8073266 | L76: 55360.0054 | M76: 4741 | N76: 11.67686256
A77: Dutchess County | B77: Village of Fishkill | C77: 3328.264534 | D77: 6530.906558 | E77: 237.6189123 | F77: 12368.43883 | G77: 166.9976528 | H77: 211.2128494 | I77: 805.8305931 | J77: 0 | K77: 503.9152258 | L77: 24153.18516 | M77: 2171 | N77: 11.12537317
A78: Dutchess County | B78: Village of Millbrook | C78: 3940.203445 | D78: 3906.938839 | E78: 1.67947812 | F78: 8296.117069 | G78: 111.6907379 | H78: 141.2625782 | I78: 538.9525662 | J78: 257.5113004 | K78: 312.3674832 | L78: 17506.7235 | M78: 1452 | N78: 12.05697211
A79: Dutchess County | B79: Village of Millerton | C79: 2040.780168 | D79: 1876.722137 | E79: 186.2178105 | F79: 3621.563635 | G79: 73.69127195 | H79: 93.20216937 | I79: 355.5899163 | J79: 12.63040416 | K79: 178.4436736 | L79: 8438.841185 | M79: 958 | N79: 8.808811258
A80: Dutchess County | B80: Village of Pawling | C80: 5289.059434 | D80: 4958.510733 | E80: 2912.328538 | F80: 11172.18707 | G80: 180.5359241 | H80: 228.3355861 | I80: 871.1581769 | J80: 0 | K80: 595.6134754 | L80: 26207.72894 | M80: 2347 | N80: 11.16648016
A81: Dutchess County | B81: Village of Red Hook | C81: 5098.138915 | D81: 4203.473206 | E81: 16.7039986 | F81: 9799.108875 | G81: 150.8440337 | H81: 190.7823112 | I81: 727.8829079 | J81: 0 | K81: 324.0171517 | L81: 20510.9514 | M81: 1961 | N81: 10.45943468
A82: Dutchess County | B82: Village of Rhinebeck | C82: 6742.005726 | D82: 7890.663186 | E82: 35.99530133 | F82: 14017.67715 | G82: 204.3817428 | H82: 258.494952 | I82: 986.2238074 | J82: 0 | K82: 603.6962529 | L82: 30739.13812 | M82: 2657 | N82: 11.56911484
A83: Dutchess County | B83: Village of Tivoli | C83: 2542.239258 | D83: 1595.934615 | E83: 1.565999869 | F83: 4883.758621 | G83: 85.99879127 | H83: 108.7682937 | I83: 414.9786288 | J83: 29.20583935 | K83: 171.4855905 | L83: 9833.935636 | M83: 1118 | N83: 8.79600683
A84: Dutchess County | B84: Village of Wappingers Falls | C84: 9435.448647 | D84: 11050.74616 | E84: 101.641875 | F84: 28821.43664 | G84: 424.7632606 | H84: 537.2258656 | I84: 2049.652941 | J84: 3.626255019 | K84: 914.3805219 | L84: 53338.92217 | M84: 5522 | N84: 9.659348455
A85: Orange County | B85: Orange County | C85: 838268.9269 | D85: 823740.5308 | E85: 207879.4143 | F85: 2204153.842 | G85: 106132.5605 | H85: 36270.33441 | I85: 173178.5555 | J85: 40787.07377 | K85: 139019.6055 | L85: 4382339.44 | M85: 372813 | N85: =L85/M85 -> 11.75479246
A86: Orange County | B86: Town of Blooming Grove | C86: 50623.11874 | D86: 22597.1081 | E86: 1752.544581 | F86: 113533.6258 | G86: 5132.218569 | H86: 1753.913058 | I86: 6691.623184 | J86: 2144.199857 | K86: 4796.69503 | L86: 209025.047 | M86: 18028 | N86: 11.59446677
A87: Orange County | B87: Town of Chester | C87: 28883.726 | D87: 29318.23578 | E87: 4666.574788 | F87: 73704.23879 | G87: 3410.756084 | H87: 1165.610847 | I87: 4447.10103 | J87: 1350.688667 | K87: 4478.454323 | L87: 151425.3863 | M87: 11981 | N87: 12.63879362
A88: Orange County | B88: Town of Cornwall | C88: 32476.87349 | D88: 19786.32309 | E88: 533.2432161 | F88: 84790.45989 | G88: 3600.068562 | H88: 1230.307551 | I88: 4693.935366 | J88: 801.5927091 | K88: 2506.495927 | L88: 150419.2998 | M88: 12646 | N88: 11.89461488
A89: Orange County | B89: Town of Crawford | C89: 23584.75355 | D89: 16326.88583 | E89: 150.9950831 | F89: 57800.50345 | G89: 2652.082771 | H89: 906.3375885 | I89: 3457.907787 | J89: 2430.605042 | K89: 1844.868885 | L89: 109154.94 | M89: 9316 | N89: 11.71693216
A90: Orange County | B90: Town of Deerpark | C90: 20650.58935 | D90: 16761.49324 | E90: 2788.591145 | F90: 54892.87311 | G90: 2249.25998 | H90: 768.6746766 | I90: 2932.68886 | J90: 676.0470924 | K90: 2419.354176 | L90: 104139.5716 | M90: 7901 | N90: 13.18055583
A91: Orange County | B91: Town of Goshen | C91: 33156.23375 | D91: 45662.15442 | E91: 6117.949989 | F91: 68537.10069 | G91: 3896.420876 | H91: 1331.584647 | I91: 5080.333177 | J91: 5148.228035 | K91: 7310.80851 | L91: 176240.8141 | M91: 13687 | N91: 12.87651159
A92: Orange County | B92: Town of Greenville | C92: 11066.46111 | D92: 5866.423281 | E92: 55.20233523 | F92: 27783.96879 | G92: 1314.084808 | H92: 449.0826866 | I92: 1713.364356 | J92: 909.4682802 | K92: 728.9565273 | L92: 49887.01217 | M92: 4616 | N92: 10.80741165
A93: Orange County | B93: Town of Hamptonburgh | C93: 13999.88964 | D93: 4789.47409 | E93: 154.8247666 | F93: 26840.06784 | G93: 1583.107803 | H93: 541.0201084 | I93: 2064.12894 | J93: 2445.315935 | K93: 602.7618989 | L93: 53020.59102 | M93: 5561 | N93: 9.534362709
A94: Orange County | B94: Town of Highlands | C94: 10856.56982 | D94: 63198.01334 | E94: 3783.291934 | F94: 12280.57314 | G94: 3556.227777 | H94: 1215.325156 | I94: 4636.77373 | J94: 370.8939292 | K94: 5277.164912 | L94: 105174.8337 | M94: 12492 | N94: 8.419375099
A95: Orange County | B95: City of Middletown | C95: 59052.92942 | D95: 77207.99596 | E95: 14316.45321 | F95: 147780.8977 | G95: 7995.53421 | H95: 2732.438548 | I95: 45222.97613 | J95: 46.9463155 | K95: 14764.61173 | L95: 369120.7832 | M95: 28086 | N95: 13.14251881
A96: Orange County | B96: Town of Minisink | C96: 12643.88112 | D96: 3232.979658 | E96: 177.2042075 | F96: 26486.69912 | G96: 1278.215075 | H96: 436.8243637 | I96: 1666.595745 | J96: 3254.997375 | K96: 744.3292283 | L96: 49921.72589 | M96: 4490 | N96: 11.11842447
A97: Orange County | B97: Town of Monroe | C97: 77811.49485 | D97: 42895.95039 | E97: 5791.708932 | F97: 144233.366 | G97: 11362.16483 | H97: 3882.969712 | I97: 14814.51434 | J97: 339.3063584 | K97: 10715.16957 | L97: 311846.645 | M97: 39912 | N97: 7.813355507
A98: Orange County | B98: Town of Montgomery | C98: 51000.06142 | D98: 43484.40289 | E98: 5691.809688 | F98: 143206.787 | G98: 6435.485521 | H98: 2199.29879 | I98: 8390.882721 | J98: 4470.949837 | K98: 4964.538072 | L98: 269844.2159 | M98: 22606 | N98: 11.93684048
A99: Orange County | B99: Town of Mount Hope | C99: 14791.00096 | D99: 6279.981771 | E99: 509.0162879 | F99: 38275.36953 | G99: 1997.887171 | H99: 682.769128 | I99: 2604.937403 | J99: 734.1364348 | K99: 520.0131563 | L99: 66395.11184 | M99: 7018 | N99: 9.460688493
A100: Orange County | B100: Town of New Windsor | C100: 56195.9526 | D100: 47322.5634 | E100: 29427.48787 | F100: 168377.5996 | G100: 7186.472463 | H100: 2455.945265 | I100: 9370.054119 | J100: 1856.463807 | K100: 7183.804814 | L100: 329376.3439 | M100: 25244 | N100: 13.04770812
A101: Orange County | B101: City of Newburgh | C101: 43256.19933 | D101: 65379.24035 | E101: 3812.084129 | F101: 120512.1826 | G101: 8217.584936 | H101: 2808.323404 | I101: 10714.4661 | J101: 0 | K101: 6852.67144 | L101: 261552.7523 | M101: 28866 | N101: 9.060928161
A102: Orange County | B102: Town of Newburgh | C102: 75772.15457 | D102: 70661.4384 | E102: 40561.81299 | F102: 193480.6751 | G102: 8483.761126 | H102: 2899.287943 | I102: 11061.51889 | J102: 1771.028565 | K102: 9779.966418 | L102: 414471.644 | M102: 29801 | N102: 13.90797772
A103: Orange County | B103: City of Port Jervis | C103: 22211.34259 | D103: 24204.09937 | E103: 4288.705202 | F103: 57285.38369 | G103: 2513.158727 | H103: 858.8609094 | I103: 3276.772214 | J103: 12.0497377 | K103: 4981.706842 | L103: 119632.0793 | M103: 8828 | N103: 13.55143626
A104: Orange County | B104: Town of Tuxedo | C104: 11066.61482 | D104: 5927.123974 | E104: 740.9721217 | F104: 23000.11808 | G104: 1031.681834 | H104: 352.5727158 | I104: 1345.154339 | J104: 319.979767 | K104: 1034.532809 | L104: 44818.75046 | M104: 3624 | N104: 12.36720487
A105: Orange County | B105: Town of Wallkill | C105: 56079.30894 | D105: 122791.6298 | E105: 23623.79347 | F105: 180535.7166 | G105: 7807.645134 | H105: 2668.228285 | I105: 10179.96769 | J105: 1950.269759 | K105: 17486.95186 | L105: 423123.5115 | M105: 27426 | N105: 15.42782438
A106: Orange County | B106: Town of Warwick | C106: 87890.90861 | D106: 53993.39197 | E106: 7080.246598 | F106: 210031.598 | G106: 9128.277592 | H106: 3119.548602 | I106: 11901.86917 | J106: 6066.519492 | K106: 9627.746722 | L106: 398840.1067 | M106: 32065 | N106: 12.43848766
A107: Orange County | B107: Town of Wawayanda | C107: 16964.19874 | D107: 11237.14607 | E107: 1689.342257 | F107: 42498.28485 | G107: 2068.487915 | H107: 706.8966207 | I107: 2696.989908 | J107: 3144.856791 | K107: 1731.213716 | L107: 82737.41687 | M107: 7266 | N107: 11.38692773
A108: Orange County | B108: Town of Woodbury | C108: 28234.6635 | D108: 24816.47569 | E108: 2245.345247 | F108: 63795.78775 | G108: 3231.976782 | H108: 1104.513809 | I108: 4214.000333 | J108: 542.529988 | K108: 3985.56421 | L108: 132170.8573 | M108: 11353 | N108: 11.64193229
A109: Orange County | B109: Village of Chester | C109: 7331.00046 | D109: 13425.39027 | E109: 2322.391332 | F109: 28844.51439 | G109: 1129.896578 | H109: 386.1371714 | I109: 1473.21125 | J109: 0 | K109: 2015.746651 | L109: 56928.28811 | M109: 3969 | N109: 14.34323208
A110: Orange County | B110: Village of Cornwall-on-Hudson | C110: 9315.306938 | D110: 4751.272793 | E110: 8.669738403 | F110: 19172.88804 | G110: 859.1655004 | H110: 293.61602 | I110: 1120.21959 | J110: 22.79646728 | K110: 787.9265514 | L110: 36331.86163 | M110: 3018 | N110: 12.0383902
A111: Orange County | B111: Village of Florida | C111: 8007.388985 | D111: 5386.962517 | E111: 763.0885709 | F111: 20552.84283 | G111: 806.4996232 | H111: 275.6176887 | I111: 1051.551391 | J111: 91.14747436 | K111: 1255.599143 | L111: 38190.69823 | M111: 2833 | N111: 13.48065592
A112: Orange County | B112: Village of Goshen | C112: 14068.49607 | D112: 22162.11462 | E112: 1254.342854 | F112: 32280.06305 | G112: 1552.646998 | H112: 530.6102628 | I112: 2024.412738 | J112: 0 | K112: 3629.504541 | L112: 77502.19113 | M112: 5454 | N112: 14.21015606
A113: Orange County | B113: Village of Greenwood Lake | C113: 9812.080233 | D113: 3860.124544 | E113: 422.6895415 | F113: 21223.68638 | G113: 897.8820372 | H113: 306.8472257 | I113: 1170.699996 | J113: 9.32078391 | K113: 1186.290949 | L113: 38889.62169 | M113: 3154 | N113: 12.33025418
A114: Orange County | B114: Village of Harriman | C114: 5428.243465 | D114: 8859.173676 | E114: 1496.379615 | F114: 18823.61186 | G114: 690.0653324 | H114: 235.8267834 | I114: 899.7389948 | J114: 42.02807039 | K114: 1338.550635 | L114: 37813.61843 | M114: 2424 | N114: 15.59967757
A115: Orange County | B115: Village of Highland Falls | C115: 7377.625286 | D115: 5067.573115 | E115: 356.4957659 | F115: 15612.07232 | G115: 1110.253629 | H115: 379.4242803 | I115: 1447.599868 | J115: 5.878857287 | K115: 705.0175436 | L115: 32061.94066 | M115: 3900 | N115: 8.221010426
A116: Orange County | B116: Village of Kiryas Joel | C116: 29260.33037 | D116: 11407.43517 | E116: 1284.352101 | F116: 27238.17412 | G116: 5743.427426 | H116: 1962.790988 | I116: 7488.54547 | J116: 3.149903496 | K116: 4034.862807 | L116: 88423.06836 | M116: 20175 | N116: =L116/M116 -> 4.382803884
A117: Orange County | B117: Village of Maybrook | C117: 5391.749014 | D117: 5460.489157 | E117: 222.4627639 | F117: 20180.80818 | G117: 842.0846754 | H117: 287.7787234 | I117: 1097.948823 | J117: 24.64935169 | K117: 653.5662204 | L117: 34161.53691 | M117: 2958 | N117: 11.54886305
A118: Orange County | B118: Village of Monroe | C118: 18736.52627 | D118: 13287.11076 | E118: 2001.078777 | F118: 47614.07856 | G118: 2381.067013 | H118: 813.7191488 | I118: 3104.544947 | J118: 0 | K118: 3016.779968 | L118: 90954.90544 | M118: 8364 | N118: 10.87457023
A119: Orange County | B119: Village of Montgomery | C119: 5798.137278 | D119: 3811.310507 | E119: 68.98962954 | F119: 24107.30155 | G119: 1085.771113 | H119: 371.0574885 | I119: 1415.678435 | J119: 0 | K119: 493.7442142 | L119: 37151.99022 | M119: 3814 | N119: 9.740951814
A120: Orange County | B120: Village of Otisville | C120: 2928.392931 | D120: 2042.310311 | E120: 76.82592084 | F120: 7937.378329 | G120: 304.038686 | H120: 103.9038798 | I120: 396.4196561 | J120: 8.394341706 | K120: 215.0540884 | L120: 14012.71814 | M120: 1068 | N120: 13.12052261
A121: Orange County | B121: Village of South Blooming Grove | C121: 9931.668683 | D121: 5035.40221 | E121: 80.27266073 | F121: 22677.21457 | G121: 920.6564707 | H121: 314.6302878 | I121: 1200.394352 | J121: 85.06113674 | K121: 1379.252005 | L121: 41624.55238 | M121: 3234 | N121: 12.8709191
A122: Orange County | B122: Village of Tuxedo Park | C122: 2545.61515 | D122: 694.374976 | E122: 59.04550055 | F122: 2990.532644 | G122: 177.3559002 | H122: 60.61059657 | I122: 231.2447994 | J122: 8.686364833 | K122: 120.7921682 | L122: 6888.2581 | M122: 623 | N122: 11.05659406
A123: Orange County | B123: Village of Unionville | C123: 1517.015381 | D123: 612.9568783 | E123: 84.52061657 | F123: 2782.175735 | G123: 174.2244156 | H123: 59.54042552 | I123: 227.1618254 | J123: 2.330195978 | K123: 206.8437192 | L123: 5666.769192 | M123: 612 | N123: 9.259426784
A124: Orange County | B124: Village of Walden | C124: 15884.09477 | D124: 9603.966802 | E124: 1970.208858 | F124: 49303.46176 | G124: 1986.499954 | H124: 678.8775969 | I124: 2590.090225 | J124: 13.84626025 | K124: 1520.244073 | L124: 83551.2903 | M124: 6978 | N124: 11.97352971
A125: Orange County | B125: Village of Warwick | C125: 14293.67047 | D125: 13639.03264 | E125: 2081.596783 | F125: 50616.77419 | G125: 1916.183891 | H125: 654.8473925 | I125: 2498.4089 | J125: 0 | K125: 2744.690782 | L125: 88445.20504 | M125: 6731 | N125: 13.13997995
A126: Orange County | B126: Village of Washingtonville | C126: 12006.79124 | D126: 8309.905386 | E126: 1042.662222 | F126: 38906.10078 | G126: 1679.329784 | H126: 573.903546 | I126: 2189.587595 | J126: 321.5466173 | K126: 1306.37625 | L126: 66336.20342 | M126: 5899 | N126: 11.2453303
A127: Orange County | B127: Village of Woodbury | C127: 26915.39436 | D127: 22546.9784 | E127: 1863.879174 | F127: 58534.44157 | G127: 3042.094943 | H127: 1039.622528 | I127: 3966.423638 | J127: 0 | K127: 2710.380558 | L127: 120619.2152 | M127: 10686 | N127: 11.28759266
A128: Putnam County | B128: Putnam County | C128: 260883.8683 | D128: 152554.0068 | E128: 99694.04814 | F128: 990465.0564 | G128: 7608.529139 | H128: 9700.6141 | I128: 37010.30329 | J128: 12843.54852 | K128: 27619.46433 | L128: 2200415.113 | M128: 99710 | N128: =L128/M128 -> 22.06814876
A129: Putnam County | B129: Town of Carmel | C129: 90289.15468 | D129: 59094.37857 | E129: 8631.997056 | F129: 329339.1736 | G129: 2617.697243 | H129: 3337.474342 | I129: 12733.31115 | J129: 1873.004813 | K129: 6043.572064 | L129: 513959.7635 | M129: 34305 | N129: 14.98206569
A130: Putnam County | B130: Town of Kent | C130: 38158.35836 | D130: 12203.69294 | E130: 23.55806576 | F130: 136233.6958 | G130: 1030.672982 | H130: 1314.072757 | I130: 5013.520876 | J130: 1204.580581 | K130: 1473.895655 | L130: 196656.0481 | M130: 13507 | N130: 14.55956527
A131: Putnam County | B131: Town of Patterson | C131: 24962.02704 | D131: 19200.85858 | E131: 1146.523998 | F131: 92849.51441 | G131: 917.4340171 | H131: 1169.696954 | I131: 4462.690567 | J131: 2764.472585 | K131: 2212.63566 | L131: 149685.8538 | M131: 12023 | N131: 12.44995873
A132: Putnam County | B132: Town of Philipstown | C132: 27845.47279 | D132: 10954.26672 | E132: 20.31259042 | F132: 75784.05459 | G132: 737.2741806 | H132: 939.9993324 | I132: 3586.335878 | J132: 1956.44133 | K132: 1106.127713 | L132: 122930.2851 | M132: 9662 | N132: 12.72306822
A133: Putnam County | B133: Town of Putnam Valley | C133: 33481.0804 | D133: 10495.53113 | E133: 2.042606858 | F133: 116211.974 | G133: 901.1044088 | H133: 1148.877263 | I133: 4383.258164 | J133: 1080.358365 | K133: 1356.16613 | L133: 169060.3924 | M133: 11809 | N133: 14.31623274
A134: Putnam County | B134: Town of Southeast | C134: 46147.77503 | D134: 40605.27888 | E134: 6862.982337 | F134: 187625.3918 | G134: 1404.346307 | H134: 1790.49345 | I134: 6831.186658 | J134: 3964.690846 | K134: 5179.352991 | L134: 300411.4983 | M134: 18404 | N134: 16.32316335
A135: Putnam County | B135: Village of Brewster | C135: 4714.956367 | D135: 6091.144273 | E135: 6.987024568 | F135: 17940.28115 | G135: 182.3727273 | H135: 232.518982 | I135: 887.1188934 | J135: 0 | K135: 639.6600343 | L135: 30695.03945 | M135: 2390 | N135: 12.84311274
A136: Putnam County | B136: Village of Cold Spring | C136: 5097.106609 | D136: 2895.061876 | E136: 0.7489564589 | F136: 13504.97149 | G136: 153.6051465 | H136: 195.8413016 | I136: 747.1842395 | J136: 5.532437535 | K136: 213.6686286 | L136: 22813.72069 | M136: 2013 | N136: 11.33319458
A137: Putnam County | B137: Village of Nelsonville | C137: 1575.607538 | D137: 548.5101286 | E137: 2.110695475 | F137: 4737.69976 | G137: 47.92053254 | H137: 61.09703796 | I137: 233.1006967 | J137: 33.61596884 | K137: 47.55204803 | L137: 7287.214406 | M137: 628 | N137: 11.6038446
A138: Rockland County | B138: Rockland County | C138: 760408.4726 | D138: 535781.3267 | E138: 326270.9503 | F138: 1383329.401 | G138: 96890.04189 | H138: 30323.49119 | I138: 115691.8103 | J138: 15221.63433 | K138: 168068.3211 | L138: 6834512.74 | M138: 311687 | N138: =L138/M138 -> 21.92748732
A139: Rockland County | B139: Town of Clarkstown | C139: 236289.7436 | D139: 140907.0691 | E139: 29317.06121 | F139: 410180.6274 | G139: 26170.10641 | H139: 8190.408176 | I139: 31248.48463 | J139: 2855.129368 | K139: 42717.91982 | L139: 927876.5497 | M139: 84187 | N139: 11.02161319
A140: Rockland County | B140: Town of Haverstraw | C140: 73404.78524 | D140: 55432.69544 | E140: 12084.28125 | F140: 168994.3055 | G140: 11387.93018 | H140: 3564.05874 | I140: 13597.78809 | J140: 1177.968248 | K140: 14923.20027 | L140: 354567.0129 | M140: 36634 | N140: 9.678632225
A141: Rockland County | B141: Town of Orangetown | C141: 128717.2087 | D141: 155935.0726 | E141: 38033.52058 | F141: 214799.6742 | G141: 15297.88776 | H141: 4787.750688 | I141: 18266.48326 | J141: 1653.756753 | K141: 32822.83838 | L141: 610314.193 | M141: 49212 | N141: 12.40173521
A142: Rockland County | B142: Town of Ramapo | C142: 277477.6787 | D142: 164731.8632 | E142: 36368.46941 | F142: 422741.2474 | G142: 39352.9241 | H142: 12316.20943 | I142: 46989.46289 | J142: 6016.218413 | K142: 51695.51258 | L142: 1057689.586 | M142: 126595 | N142: 8.354908062
A143: Rockland County | B143: Town of Stony Point | C143: 44519.05637 | D143: 18774.62633 | E143: 4255.634233 | F143: 80081.32 | G143: 4681.193444 | H143: 1465.064163 | I143: 5589.591387 | J143: 3518.561553 | K143: 7265.422469 | L143: 170150.47 | M143: 15059 | N143: 11.29892224
A144: Rockland County | B144: Village of Airmont | C144: 23720.4418 | D144: 12306.47084 | E144: 2552.242707 | F144: 36704.21365 | G144: 2682.072982 | H144: 839.403254 | I144: 3202.536323 | J144: 317.4709633 | K144: 4062.353946 | L144: 86387.20647 | M144: 8628 | N144: 10.01242541
A145: Rockland County | B145: Village of Chestnut Ridge | C145: 23597.65555 | D145: 11152.75135 | E145: 2399.755015 | F145: 34330.49441 | G145: 2460.742898 | H145: 770.1340007 | I145: 2938.256552 | J145: 825.7049016 | K145: 4095.443215 | L145: 82570.93789 | M145: 7916 | N145: 10.4308916
A146: Rockland County | B146: Village of Grand View-on-Hudson | C146: 2185.235753 | D146: 134.9972055 | E146: 23.60067532 | F146: 1281.391899 | G146: 88.59420489 | H146: 27.72715895 | I146: 105.7861442 | J146: 0 | K146: 267.3258911 | L146: 4114.658932 | M146: 285 | N146: 14.43739976
A147: Rockland County | B147: Village of Haverstraw | C147: 18016.96296 | D147: 14797.5161 | E147: 3370.048457 | F147: 40730.06813 | G147: 3702.305194 | H147: 1158.703379 | I147: 4420.747289 | J147: 0 | K147: 4066.322844 | L147: 90262.67435 | M147: 11910 | N147: 7.578730005
A148: Rockland County | B148: Village of Hillburn | C148: 2367.653485 | D148: 4354.975752 | E148: 847.5038942 | F148: 4353.189022 | G148: 295.6248732 | H148: 92.52115143 | I148: 352.9916601 | J148: 173.2507578 | K148: 710.0210672 | L148: 13547.73166 | M148: 951 | N148: 14.24577462
A149: Rockland County | B149: Village of Kaser | C149: 5728.130607 | D149: 292.0843118 | E149: 36.23109527 | F149: 4484.555637 | G149: 1468.487803 | H149: 459.5898205 | I149: 1753.451737 | J149: 3.813715744 | K149: 656.2990932 | L149: 14882.64382 | M149: 4724 | N149: 3.150432646
A150: Rockland County | B150: Village of Montebello | C150: 17047.39054 | D150: 9862.544634 | E150: 2112.094991 | F150: 18386.1965 | G150: 1406.938145 | H150: 440.3267417 | I150: 1679.958206 | J150: 714.4833401 | K150: 3093.067311 | L150: 54743.00041 | M150: 4526 | N150: 12.09522767
A151: Rockland County | B151: Village of New Hempstead | C151: 13924.95018 | D151: 3491.164305 | E151: 746.263752 | F151: 17320.44212 | G151: 1595.317402 | H151: 499.2834376 | I151: 1904.892954 | J151: 606.0657499 | K151: 1976.178627 | L151: 42064.55852 | M151: 5132 | N151: 8.196523485
A152: Rockland County | B152: Village of New Square | C152: 9996.183028 | D152: 2189.747345 | E152: 447.6694815 | F152: 6151.377656 | G152: 2158.590031 | H152: 675.5697955 | I152: 2577.470124 | J152: 61.01945191 | K152: 1370.287874 | L152: 25627.91479 | M152: 6944 | N152: 3.690655931
A153: Rockland County | B153: Village of Nyack | C153: 14610.28553 | D153: 20230.06192 | E153: 4583.03233 | F153: 40728.82472 | G153: 2102.946653 | H153: 658.1551939 | I153: 2511.029001 | J153: 39.69351889 | K153: 4317.953506 | L153: 89781.98238 | M153: 6765 | N153: 13.27154211
A154: Rockland County | B154: Village of Piermont | C154: 6680.48823 | D154: 3566.50868 | E154: 785.9666265 | F154: 18736.24496 | G154: 780.2507167 | H154: 244.1935753 | I154: 931.6604278 | J154: 11.44114723 | K154: 1189.800245 | L154: 32926.55461 | M154: 2510 | N154: 13.11814925
A155: Rockland County | B155: Village of Pomona | C155: 15246.638 | D155: 6503.975092 | E155: 1342.221498 | F155: 15979.08936 | G155: 964.5888343 | H155: 301.8855235 | I155: 1151.769844 | J155: 63.35399408 | K155: 2417.499102 | L155: 43971.02125 | M155: 3103 | N155: 14.17048703
A156: Rockland County | B156: Village of Sloatsburg | C156: 8754.285753 | D156: 2503.925606 | E156: 483.389998 | F156: 15909.89924 | G156: 944.6939953 | H156: 295.6590738 | I156: 1128.014359 | J156: 82.4225728 | K156: 1143.033554 | L156: 31245.32415 | M156: 3039 | N156: 10.28144921
A157: Rockland County | B157: Village of South Nyack | C157: 7724.210526 | D157: 3475.041695 | E157: 789.0253324 | F157: 9408.010141 | G157: 1091.107576 | H157: 341.4818523 | I157: 1302.839881 | J157: 59.54027834 | K157: 1314.877669 | L157: 25506.13495 | M157: 3510 | N157: 7.266705114
A158: Rockland County | B158: Village of Spring Valley | C158: 33608.6727 | D158: 34809.67055 | E158: 7930.594532 | F158: 95223.98538 | G158: 9744.429967 | H158: 3049.695619 | I158: 11635.36232 | J158: 11.44114723 | K158: 8245.384466 | L158: 204259.2367 | M158: 31347 | N158: 6.516069694
A159: Rockland County | B159: Village of Suffern | C159: 23878.72874 | D159: 40852.84987 | E159: 9328.802592 | F159: 61917.10972 | G159: 3333.318102 | H159: 1043.222194 | I159: 3980.157278 | J159: 27.47419093 | K159: 7954.62188 | L159: 152316.2846 | M159: 10723 | N159: 14.20463346
A160: Rockland County | B160: Village of Upper Nyack | C160: 7525.689764 | D160: 1757.854201 | E160: 367.5640653 | F160: 10478.53879 | G160: 641.2977007 | H160: 200.7057155 | I160: 765.7432121 | J160: 134.2582318 | K160: 1088.479596 | L160: 22960.13128 | M160: 2063 | N160: 11.12948681
A161: Rockland County | B161: Village of Wesley Hills | C161: 16719.13245 | D161: 1627.172174 | E161: 310.168092 | F161: 19696.52724 | G161: 1749.502404 | H161: 547.538423 | I161: 2088.997963 | J161: 143.5192126 | K161: 2064.282908 | L161: 44946.84087 | M161: 5628 | N161: 7.986290133
A162: Rockland County | B162: Village of West Haverstraw | C162: 18499.17055 | D162: 14236.35582 | E162: 3184.264663 | F162: 47865.14781 | G162: 3159.859974 | H162: 988.9353357 | I162: 3773.039143 | J162: 27.47419093 | K162: 3953.479141 | L162: 95687.72663 | M162: 10165 | N162: 9.413450726
A163: Sullivan County | B163: Sullivan County | C163: 210848.1696 | D163: 135903.4847 | E163: 16675.13726 | F163: 450174.6337 | G163: 25429.66439 | H163: 7544.414017 | I163: 28783.85306 | J163: 19883.02926 | K163: 12405.24867 | L163: 1405263.218 | M163: 77547 | N163: =L163/M163 -> 18.12143884
A164: Sullivan County | B164: Town of Bethel | C164: 15372.11051 | D164: 7468.621404 | E164: 12.23294552 | F164: 25411.60828 | G164: 1395.324409 | H164: 413.9616186 | I164: 1579.368574 | J164: 2976.488533 | K164: 796.8067473 | L164: 55426.52302 | M164: 4255 | N164: 13.02620988
A165: Sullivan County | B165: Town of Callicoon | C165: 9793.985505 | D165: 4510.804848 | E165: 37.8109225 | F165: 23299.27093 | G165: 1002.469264 | H165: 297.4102628 | I165: 1134.695589 | J165: 3359.784805 | K165: 357.2628651 | L165: 43793.49499 | M165: 3057 | N165: 14.32564442
A166: Sullivan County | B166: Town of Cochecton | C166: 3842.219804 | D166: 1879.302965 | E166: 286.8046985 | F166: 8539.464293 | G166: 449.9142397 | H166: 133.479516 | I166: 509.2582099 | J166: 1715.940945 | K166: 176.3713825 | L166: 17532.75605 | M166: 1372 | N166: 12.77897672
A167: Sullivan County | B167: Town of Delaware | C167: 7409.394501 | D167: 6244.788239 | E167: 20.81189432 | F167: 17525.95294 | G167: 875.5619679 | H167: 259.7596996 | I167: 991.0491403 | J167: 2662.038642 | K167: 451.3782713 | L167: 36440.73529 | M167: 2670 | N167: 13.64821547
A168: Sullivan County | B168: Town of Fallsburg | C168: 28929.03586 | D168: 22308.93682 | E168: 4215.804381 | F168: 45520.10936 | G168: 4220.405441 | H168: 1252.100125 | I168: 4777.079564 | J168: 805.5808979 | K168: 2442.20867 | L168: 114471.2611 | M168: 12870 | N168: 8.894425884
A169: Sullivan County | B169: Town of Forestburgh | C169: 3019.55849 | D169: 1028.732607 | E169: 28.74179642 | F169: 6408.297475 | G169: 268.5712553 | H169: 79.67909886 | I169: 303.9959722 | J169: 34.44993477 | K169: 87.90597732 | L169: 11259.93261 | M169: 819 | N169: 13.74839146
A170: Sullivan County | B170: Town of Fremont | C170: 3944.517171 | D170: 1575.569453 | E170: 84.85896713 | F170: 9080.661134 | G170: 452.8655721 | H170: 134.3551105 | I170: 512.598825 | J170: 2431.528749 | K170: 241.7972627 | L170: 18458.75224 | M170: 1381 | N170: 13.36622176
A171: Sullivan County | B171: Town of Highland | C171: 7620.875617 | D171: 3573.474552 | E171: 0 | F171: 14812.50717 | G171: 829.6523516 | H171: 246.1393408 | I171: 939.0840168 | J171: 138.6932131 | K171: 329.5629394 | L171: 28489.9892 | M171: 2530 | N171: 11.2608653
A172: Sullivan County | B172: Town of Liberty | C172: 24449.71139 | D172: 19219.74442 | E172: 3249.878294 | F172: 54797.3469 | G172: 3241.546836 | H172: 961.6946181 | I172: 3669.108896 | J172: 2476.301824 | K172: 1694.227902 | L172: 113759.5611 | M172: 9885 | N172: 11.50830158
A173: Sullivan County | B173: Town of Lumberland | C173: 7078.582929 | D173: 2934.482873 | E173: 125.185061 | F173: 15200.87818 | G173: 809.3209501 | H173: 240.1074676 | I173: 916.0708907 | J173: 68.91664418 | K173: 237.4924088 | L173: 27611.03741 | M173: 2468 | N173: 11.18761645
A174: Sullivan County | B174: Town of Mamakating | C174: 32663.80087 | D174: 13640.12331 | E174: 586.2138664 | F174: 77551.33407 | G174: 3962.983664 | H174: 1175.728828 | I174: 4485.703693 | J174: 505.1673712 | K174: 936.3336823 | L174: 135507.3894 | M174: 12085 | N174: 11.21285804
A175: Sullivan County | B175: Town of Neversink | C175: 9963.181423 | D175: 4253.864942 | E175: 6.944863317 | F175: 21529.70625 | G175: 1166.43218 | H175: 346.0544013 | I175: 1320.285315 | J175: 553.2442825 | K175: 324.4019711 | L175: 39464.11563 | M175: 3557 | N175: 11.09477527
A176: Sullivan County | B176: Town of Rockland | C176: 11045.15338 | D176: 6308.652775 | E176: 1.29365101 | F176: 23258.54626 | G176: 1237.920011 | H176: 367.2632457 | I176: 1401.202436 | J176: 1422.64988 | K176: 529.4478514 | L176: 45572.1295 | M176: 3775 | N176: =L176/M176 -> 12.07208728
A177: Sullivan County | B177: Town of Thompson | C177: 41210.51461 | D177: 38770.64781 | E177: 888.8290264 | F177: 83561.23287 | G177: 5019.888616 | H177: 1489.288944 | I177: 5682.015071 | J177: 461.4912744 | K177: 3222.518622 | L177: 180306.4269 | M177: 15308 | N177: 11.77857505
A178: Sullivan County | B178: Town of Tusten | C178: 4505.527579 | D178: 2185.737628 | E178: 97.09191265 | F178: 8534.25212 | G178: 496.8076335 | H178: 147.3917397 | I178: 562.3368717 | J178: 270.7522637 | K178: 198.9955989 | L178: 16998.89335 | M178: 1515 | N178: 11.22039165
A179: Sullivan County | B179: Village of Bloomingburg | C179: 834.371317 | D179: 525.7061183 | E179: 39.13091683 | F179: 2229.561361 | G179: 137.7288489 | H179: 40.86107634 | I179: 155.8953704 | J179: 6.764353171 | K179: 41.90789006 | L179: 4011.927252 | M179: 420 | N179: 9.552207743
A180: Sullivan County | B180: Village of Jeffersonville | C180: 975.1366849 | D180: 873.5954301 | E180: 0.1361739016 | F180: 2239.16507 | G180: 117.7253732 | H180: 34.92649144 | I180: 133.2534237 | J180: 4.285226747 | K180: 60.33008091 | L180: 4438.553955 | M180: 359 | N180: 12.36366004
A181: Sullivan County | B181: Village of Liberty | C181: 7911.40121 | D181: 8478.02678 | E181: 3200.245557 | F181: 21112.21863 | G181: 1440.250248 | H181: 427.2901126 | I181: 1630.220159 | J181: 0 | K181: 762.2461102 | L181: 44961.89881 | M181: 4392 | N181: 10.23722651
A182: Sullivan County | B182: Village of Monticello | C182: 12995.96246 | D182: 15038.1379 | E182: 21.65165036 | F182: 34114.19257 | G182: 2205.629137 | H182: 654.3609511 | I182: 2496.553003 | J182: 25.75621766 | K182: 1064.912434 | L182: 68617.15632 | M182: 6726 | N182: 10.20177763
A183: Sullivan County | B183: Village of Woodridge | C183: 2180.864081 | D183: 1682.349232 | E183: 3439.684668 | F183: 4648.032184 | G183: 277.7531786 | H183: 82.40317062 | I183: 314.3889969 | J183: 4.153575812 | K183: 379.5852164 | L183: 13009.2143 | M183: 847 | N183: 15.35916683
A184: Sullivan County | B184: Village of Wurtsboro | C184: 2733.454672 | D184: 1669.84146 | E184: 132.0096931 | F184: 6557.883665 | G184: 408.595585 | H184: 121.2211931 | I184: 462.4895988 | J184: 6.047930192 | K184: 127.0166029 | L184: 12218.5604 | M184: 1246 | N184: 9.806228251
A185: Ulster County | B185: Ulster County | C185: 451255.7726 | D185: 349919.2647 | E185: 100289.6204 | F185: 1151439.794 | G185: 36202.62139 | H185: 17754.42953 | I185: 67737.65197 | J185: 15645.11532 | K185: 39744.37773 | L185: 2052893.59 | M185: 182493 | N185: =L185/M185 -> 11.24916347
A186: Ulster County | B186: Town of Denning | C186: 1591.004289 | D186: 1082.12162 | E186: 0 | F186: 3774.43266 | G186: 109.3063536 | H186: 53.60584063 | I186: 204.5198788 | J186: 158.1910319 | K186: 114.3567498 | L186: 7087.538423 | M186: 551 | N186: 12.86304614
A187: Ulster County | B187: Town of Esopus | C187: 22124.34177 | D187: 14795.024 | E187: 688.709098 | F187: 54414.77553 | G187: 1793.536738 | H187: 879.5833124 | I187: 3355.833437 | J187: 401.6323405 | K187: 1435.882448 | L187: 99889.31868 | M187: 9041 | N187: 11.04848122
A188: Ulster County | B188: Town of Gardiner | C188: 15538.05362 | D188: 7406.283755 | E188: 40.85213716 | F188: 34546.02183 | G188: 1133.334298 | H188: 555.8079265 | I188: 2120.548217 | J188: 1777.953309 | K188: 669.099821 | L188: 63787.95491 | M188: 5713 | N188: 11.16540433
A189: Ulster County | B189: Town of Hardenburgh | C189: 588.2682932 | D189: 251.8182712 | E189: 0 | F189: 959.1013292 | G189: 47.21399664 | H189: 23.15460993 | I189: 88.34070988 | J189: 743.1713783 | K189: 31.467043 | L189: 2732.535631 | M189: 238 | N189: 11.48124215
A190: Ulster County | B190: Town of Hurley | C190: 19456.51296 | D190: 6994.615351 | E190: 20.85728558 | F190: 40341.46386 | G190: 1252.559558 | H190: 614.278181 | I190: 2343.627068 | J190: 97.39828792 | K190: 505.2164599 | L190: 71626.52901 | M190: 6314 | N190: 11.34408125
A191: Ulster County | B191: City of Kingston | C191: 53832.21768 | D191: 71125.63212 | E191: 2252.444161 | F191: 140379.6999 | G191: 4739.848831 | H191: 2324.508802 | I191: 8868.590677 | J191: 0 | K191: 6722.756106 | L191: 290245.6983 | M191: 23893 | N191: 12.14772939
A192: Ulster County | B192: Town of Kingston | C192: 2977.746393 | D192: 1799.346947 | E192: 67.13367873 | F192: 5921.852625 | G192: 176.3581639 | H192: 86.48927825 | I192: 329.978534 | J192: 77.50865356 | K192: 123.6731772 | L192: 11560.08745 | M192: 889 | N192: 13.00347295
A193: Ulster County | B193: Town of Lloyd | C193: 23324.64974 | D193: 19839.22029 | E193: 1950.015219 | F193: 60924.03666 | G193: 2154.981704 | H193: 1056.842553 | I193: 4032.122401 | J193: 633.8699298 | K193: 1902.843693 | L193: 115818.5822 | M193: 10863 | N193: 10.66174926
A194: Ulster County | B194: Town of Marbletown | C194: 17471.16427 | D194: 7987.846778 | E194: 1188.547539 | F194: 33648.20779 | G194: 1112.306215 | H194: 545.4953691 | I194: 2081.203195 | J194: 983.5767562 | K194: 650.3593538 | L194: 65668.70726 | M194: 5607 | N194: 11.71191497
A195: Ulster County | B195: Town of Marlborough | C195: 23688.37513 | D195: 12953.2631 | E195: 3529.990584 | F195: 51222.62199 | G195: 1747.314632 | H195: 856.9151438 | I195: 3269.348625 | J195: 1270.6742 | K195: 1225.213003 | L195: 99763.71641 | M195: 8808 | N195: 11.32648915
A196: Ulster County | B196: Town of New Paltz | C196: 23656.58606 | D196: 29821.14021 | E196: 198.4506041 | F196: 50283.66606 | G196: 2777.889055 | H196: 1362.327743 | I196: 5197.625884 | J196: 1197.769565 | K196: 2132.938512 | L196: 116628.3937 | M196: 14003 | N196: 8.328814804
A197: Ulster County | B197: Town of Olive | C197: 13736.42108 | D197: 7070.826897 | E197: 231.6316177 | F197: 26803.94213 | G197: 876.6329881 | H197: 429.9168961 | I197: 1640.242004 | J197: 142.5115017 | K197: 645.2753991 | L197: 51577.40052 | M197: 4419 | N197: 11.6717358
A198: Ulster County | B198: Town of Plattekill | C198: 24637.65264 | D198: 12227.23583 | E198: 5.515038517 | F198: 57644.37901 | G198: 2082.772062 | H198: 1021.42962 | I198: 3897.01308 | J198: 875.1027039 | K198: 1294.710495 | L198: 103685.8105 | M198: 10499 | N198: 9.875779643
A199: Ulster County | B199: Town of Rochester | C199: 21973.4792 | D199: 10835.65224 | E199: 20.63032927 | F199: 45438.94389 | G199: 1450.739317 | H199: 711.4691697 | I199: 2714.435342 | J199: 1177.940228 | K199: 945.2925305 | L199: 85268.58224 | M199: 7313 | N199: 11.65986356
A200: Ulster County | B200: Town of Rosendale | C200: 17726.30413 | D200: 10067.14902 | E200: 3.222779709 | F200: 40744.18858 | G200: 1205.147183 | H200: 591.0262828 | I200: 2254.915179 | J200: 243.1984341 | K200: 760.6308286 | L200: 73595.78242 | M200: 6075 | N200: 12.11453209
A201: Ulster County | B201: Town of Saugerties | C201: 51913.45184 | D201: 30235.70055 | E201: 47846.98387 | F201: 120027.3506 | G201: 3864.802868 | H201: 1895.370213 | I201: 7231.318109 | J201: 799.1864843 | K201: 3473.304136 | L201: 267287.4687 | M201: 19482 | N201: 13.71971403
A202: Ulster County | B202: Town of Shandaken | C202: 10621.62238 | D202: 7024.647028 | E202: 0 | F202: 21237.45685 | G202: 611.9965531 | H202: 300.1343345 | I202: 1145.088613 | J202: 159.0493761 | K202: 603.19815 | L202: 41703.19329 | M202: 3085 | N202: 13.51805293
A203: Ulster County | B203: Town of Shawangunk | C203: 27996.77106 | D203: 12852.29316 | E203: 4543.534335 | F203: 59440.41805 | G203: 2843.155462 | H203: 1394.335586 | I203: 5319.743925 | J203: 3493.893572 | K203: 1432.754913 | L203: 119316.9001 | M203: 14332 | N203: 8.325209326
A204: Ulster County | B204: Town of Ulster | C204: 30183.88421 | D204: 53564.17243 | E204: 1819.480357 | F204: 80939.65066 | G204: 2445.407297 | H204: 1199.272591 | I204: 4575.529121 | J204: 463.5541816 | K204: 4075.252093 | L204: 179266.2029 | M204: 12327 | N204: 14.54256534
A205: Ulster County | B205: Town of Wawarsing | C205: 27295.44249 | D205: 22756.60127 | E205: 685.6123397 | F205: 60207.92701 | G205: 2610.061151 | H205: 1280.02186 | I205: 4883.608067 | J205: 777.213453 | K205: 1928.300303 | L205: 122424.7879 | M205: 13157 | N205: 9.304916618
A206: Ulster County | B206: Town of Woodstock | C206: 20921.82338 | D206: 9228.673816 | E206: 1078.65529 | F206: 27618.75957 | G206: 1167.256959 | H206: 572.4442219 | I206: 2184.019903 | J206: 171.7199292 | K206: 1015.04597 | L206: 63958.39905 | M206: 5884 | N206: 10.86988427
A207: Ulster County | B207: Village of Ellenville | C207: 8688.004439 | D207: 6842.217703 | E207: 467.5303955 | F207: 20412.59048 | G207: 820.2935972 | H207: 402.2870254 | I207: 1534.827039 | J207: 10.93145257 | K207: 581.2491534 | L207: 39759.93129 | M207: 4135 | N207: 9.615461013
A208: Ulster County | B208: Village of New Paltz | C208: 6571.991892 | D208: 17642.26188 | E208: 13.79895536 | F208: 14915.69051 | G208: 1352.542139 | H208: 663.3114726 | I208: 2530.701513 | J208: 0 | K208: 1221.673885 | L208: 44911.97225 | M208: 6818 | N208: 6.587264923
A209: Ulster County | B209: Village of Saugerties | C209: 10786.51584 | D209: 10289.83334 | E209: 29.2713149 | F209: 27164.20463 | G209: 787.7595827 | H209: 386.331748 | I209: 1473.953609 | J209: 0 | K209: 980.0853978 | L209: 51897.95547 | M209: 3971 | N209: 13.06924086
A210: Westchester County | B210: Westchester County | C210: 2415048.339 | D210: 2201563.82 | E210: 424342.2206 | F210: 4515090.184 | G210: 55057.23351 | H210: 92337.56845 | I210: 352291.2444 | J210: 13192.57985 | K210: 345885.8746 | L210: 9417198.561 | M210: 949113 | N210: 9.922104704
A211: Westchester County | B211: Town of Bedford | C211: 54777.03542 | D211: 43101.36066 | E211: 1165.872891 | F211: 63690.3049 | G211: 1005.588526 | H211: 1686.492282 | I211: 6434.395823 | J211: 2324.762654 | K211: 5393.875141 | L211: 179579.6883 | M211: 17335 | N211: 10.35937054
A212: Westchester County | B212: Town of Cortlandt | C212: 111555.563 | D212: 85324.52048 | E212: 56589.26459 | F212: 182826.1606 | G212: 2412.716353 | H212: 4046.414017 | I212: 15438.09582 | J212: 912.8398417 | K212: 18622.93569 | L212: 477728.5104 | M212: 41592 | N212: 11.48606728
A213: Westchester County | B213: Town of Eastchester | C213: 89834.57057 | D213: 74569.35647 | E213: 4057.765381 | F213: 137667.3713 | G213: 1877.349955 | H213: 3148.540509 | I213: 12012.48065 | J213: 15.45329272 | K213: 13040.68709 | L213: 336223.5752 | M213: 32363 | N213: 10.38913497
A214: Westchester County | B214: Town of Greenburgh | C214: 246273.4589 | D214: 252031.9443 | E214: 20932.91665 | F214: 378627.6136 | G214: 5128.008406 | H214: 8600.283687 | I214: 32812.26367 | J214: 191.0821926 | K214: 37532.29517 | L214: 982129.8666 | M214: 88400 | N214: 11.11006636
... 44 more rows

Sheet Population (hidden)
A1: Name | B1: Population (2010)
A2: City of Beacon | B2: 15541
A3: City of Kingston | B3: 23893
A4: City of Middletown | B4: 28086
A5: City of Mount Vernon | B5: 67292
A6: City of New Rochelle | B6: 77062
A7: City of Newburgh | B7: 28866
A8: City of Peekskill | B8: 23583
A9: City of Port Jervis | B9: 8828
A10: City of Poughkeepsie | B10: 32736
A11: City of Rye | B11: 15720
A12: City of White Plains | B12: 56853
A13: City of Yonkers | B13: 195976
A14: Dutchess County | B14: 297488
A15: Orange County | B15: 372813
A16: Putnam County | B16: 99710
A17: Rockland County | B17: 311687
A18: Sullivan County | B18: 77547
A19: Ulster County | B19: 182493
A20: Westchester County | B20: 949113
A21: Town of Amenia | B21: 4436
A22: Town of Bedford | B22: 17335
A23: Town of Beekman | B23: 14621
A24: Town of Bethel | B24: 4255
A25: Town of Blooming Grove | B25: 18028
A26: Town of Callicoon | B26: 3057
A27: Town of Carmel | B27: 34305
A28: Town of Chester | B28: 11981
A29: Town of Clarkstown | B29: 84187
A30: Town of Clinton | B30: 4312
A31: Town of Cochecton | B31: 1372
A32: Town of Cornwall | B32: 12646
A33: Town of Cortlandt | B33: 41592
A34: Town of Crawford | B34: 9316
A35: Town of Deerpark | B35: 7901
A36: Town of Delaware | B36: 2670
A37: Town of Denning | B37: 551
A38: Town of Dover | B38: 8699
A39: Town of East Fishkill | B39: 29029
A40: Town of Eastchester | B40: 32363
A41: Town of Esopus | B41: 9041
A42: Town of Fallsburg | B42: 12870
A43: Town of Fishkill | B43: 22107
A44: Town of Forestburgh | B44: 819
A45: Town of Fremont | B45: 1381
A46: Town of Gardiner | B46: 5713
A47: Town of Goshen | B47: 13687
A48: Town of Greenburgh | B48: 88400
A49: Town of Greenville | B49: 4616
A50: Town of Hamptonburgh | B50: 5561
A51: Town of Hardenburgh | B51: 238
A52: Town of Harrison | B52: 27472
A53: Town of Haverstraw | B53: 36634
A54: Town of Highland | B54: 2530
A55: Town of Highlands | B55: 12492
A56: Town of Hurley | B56: 6314
A57: Town of Hyde Park | B57: 21571
A58: Town of Kent | B58: 13507
A59: Town of Kingston | B59: 889
A60: Town of LaGrange | B60: 15730
A61: Town of Lewisboro | B61: 12411
A62: Town of Liberty | B62: 9885
A63: Town of Lloyd | B63: 10863
A64: Town of Lumberland | B64: 2468
A65: Town of Mamakating | B65: 12085
A66: Town of Mamaroneck | B66: 29156
A67: Town of Marbletown | B67: 5607
A68: Town of Marlborough | B68: 8808
A69: Town of Milan | B69: 2370
A70: Town of Minisink | B70: 4490
A71: Town of Monroe | B71: 39912
A72: Town of Montgomery | B72: 22606
A73: Town of Mount Hope | B73: 7018
A74: Town of Mount Kisco | B74: 10877
A75: Town of Mount Pleasant | B75: 43724
A76: Town of Neversink | B76: 3557
A77: Town of New Castle | B77: 17569
A78: Town of New Paltz | B78: 14003
A79: Town of New Windsor | B79: 25244
A80: Town of Newburgh | B80: 29801
A81: Town of North Castle | B81: 11841
A82: Town of North East | B82: 3031
A83: Town of North Salem | B83: 5104
A84: Town of Olive | B84: 4419
A85: Town of Orangetown | B85: 49212
A86: Town of Ossining | B86: 37674
A87: Town of Patterson | B87: 12023
A88: Town of Pawling | B88: 8463
A89: Town of Pelham | B89: 12396
A90: Town of Philipstown | B90: 9662
A91: Town of Pine Plains | B91: 2473
A92: Town of Plattekill | B92: 10499
A93: Town of Pleasant Valley | B93: 9672
A94: Town of Poughkeepsie | B94: 43341
A95: Town of Pound Ridge | B95: 5104
A96: Town of Putnam Valley | B96: 11809
A97: Town of Ramapo | B97: 126595
A98: Town of Red Hook | B98: 11319
A99: Town of Rhinebeck | B99: 7548
A100: Town of Rochester | B100: 7313
A101: Town of Rockland | B101: 3775
A102: Town of Rosendale | B102: 6075
A103: Town of Rye | B103: 45928
A104: Town of Saugerties | B104: 19482
A105: Town of Scarsdale | B105: 17166
A106: Town of Shandaken | B106: 3085
A107: Town of Shawangunk | B107: 14332
A108: Town of Somers | B108: 20434
A109: Town of Southeast | B109: 18404
A110: Town of Stanford | B110: 3823
A111: Town of Stony Point | B111: 15059
A112: Town of Thompson | B112: 15308
A113: Town of Tusten | B113: 1515
A114: Town of Tuxedo | B114: 3624
A115: Town of Ulster | B115: 12327
A116: Town of Union Vale | B116: 4877
A117: Town of Wallkill | B117: 27426
A118: Town of Wappinger | B118: 27048
A119: Town of Warwick | B119: 32065
A120: Town of Washington | B120: 4741
A121: Town of Wawarsing | B121: 13157
A122: Town of Wawayanda | B122: 7266
A123: Town of Woodbury | B123: 11353
A124: Town of Woodstock | B124: 5884
A125: Town of Yorktown | B125: 36081
A126: Village of Airmont | B126: 8628
A127: Village of Ardsley | B127: 4452
A128: Village of Bloomingburg | B128: 420
A129: Village of Brewster | B129: 2390
A130: Village of Briarcliff Manor | B130: 7867
A131: Village of Bronxville | B131: 6323
A132: Village of Buchanan | B132: 2230
A133: Village of Chester | B133: 3969
A134: Village of Chestnut Ridge | B134: 7916
A135: Village of Cold Spring | B135: 2013
A136: Village of Cornwall-on-Hudson | B136: 3018
A137: Village of Croton-on-Hudson | B137: 8070
A138: Village of Dobbs Ferry | B138: 10875
A139: Village of Ellenville | B139: 4135
A140: Village of Elmsford | B140: 4664
A141: Village of Fishkill | B141: 2171
A142: Village of Florida | B142: 2833
A143: Village of Goshen | B143: 5454
A144: Village of Grand View-on-Hudson | B144: 285
A145: Village of Greenwood Lake | B145: 3154
A146: Village of Harriman | B146: 2424
A147: Village of Harrison | B147: 27472
A148: Village of Hastings-on-Hudson | B148: 7849
A149: Village of Haverstraw | B149: 11910
A150: Village of Highland Falls | B150: 3900
A151: Village of Hillburn | B151: 951
A152: Village of Irvington | B152: 6420
A153: Village of Jeffersonville | B153: 359
A154: Village of Kaser | B154: 4724
A155: Village of Kiryas Joel | B155: 20175
A156: Village of Larchmont | B156: 5864
A157: Village of Liberty | B157: 4392
A158: Village of Mamaroneck | B158: 18929
A159: Village of Maybrook | B159: 2958
A160: Village of Millbrook | B160: 1452
A161: Village of Millerton | B161: 958
A162: Village of Monroe | B162: 8364
A163: Village of Montebello | B163: 4526
A164: Village of Montgomery | B164: 3814
A165: Village of Monticello | B165: 6726
A166: Village of Mount Kisco | B166: 10877
A167: Village of Nelsonville | B167: 628
A168: Village of New Hempstead | B168: 5132
A169: Village of New Paltz | B169: 6818
A170: Village of New Square | B170: 6944
A171: Village of Nyack | B171: 6765
A172: Village of Ossining | B172: 25060
A173: Village of Otisville | B173: 1068
A174: Village of Pawling | B174: 2347
A175: Village of Pelham | B175: 6910
A176: Village of Pelham Manor | B176: 5486
A177: Village of Piermont | B177: 2510
A178: Village of Pleasantville | B178: 7019
A179: Village of Pomona | B179: 3103
A180: Village of Port Chester | B180: 28967
A181: Village of Red Hook | B181: 1961
A182: Village of Rhinebeck | B182: 2657
A183: Village of Rye Brook | B183: 9347
A184: Village of Saugerties | B184: 3971
A185: Village of Scarsdale | B185: 17166
A186: Village of Sleepy Hollow | B186: 9870
A187: Village of Sloatsburg | B187: 3039
A188: Village of South Blooming Grove | B188: 3234
A189: Village of South Nyack | B189: 3510
A190: Village of Spring Valley | B190: 31347
A191: Village of Suffern | B191: 10723
A192: Village of Tarrytown | B192: 11277
A193: Village of Tivoli | B193: 1118
A194: Village of Tuckahoe | B194: 6486
A195: Village of Tuxedo Park | B195: 623
A196: Village of Unionville | B196: 612
A197: Village of Upper Nyack | B197: 2063
A198: Village of Walden | B198: 6978
A199: Village of Wappingers Falls | B199: 5522
A200: Village of Warwick | B200: 6731
... 6 more rows

Sheet Table & Pie Charts (hidden)
C1: Mid-Hudson CSC Community GHG Inventory Results by Local Government and Sector
A3: Local Government | B3: Type | C3: Residential | D3: Commercial | E3: Industrial | F3: Transportation | G3: Solid Waste | H3: Wastewater Treatment | I3: Industrial Processes | J3: Agriculture | K3: Energy Supply | M3: Pie Charts 2010 Community-Scale GHG Emissions MTCO2e by Source
A4: Ardsley | B4: Village | C4: 13505.04943 | D4: 8752.680655 | E4: 463.7449815 | F4: 18959.43955 | G4: 258.2567129 | H4: 433.1274092 | I4: 1652.490926 | J4: 17.51205122 | K4: 1932.804273
A5: Beacon | B5: City | C5: 29945.78062 | D5: 45714.63921 | E5: 94059.5954 | F5: 69485.17624 | G5: 1195.444736 | H5: 1511.957113 | I5: 5768.499884 | J5: 87.38491748 | K5: 4590.049993
A6: Bedford | B6: Town | C6: 54777.03542 | D6: 43101.36066 | E6: 1165.872891 | F6: 63690.3049 | G6: 1005.588526 | H6: 1686.492282 | I6: 6434.395823 | J6: 2324.762654 | K6: 5393.875141
A7: Bethel | B7: Town | C7: 15372.11051 | D7: 7468.621404 | E7: 12.23294552 | F7: 25411.60828 | G7: 1395.324409 | H7: 413.9616186 | I7: 1579.368574 | J7: 2976.488533 | K7: 796.8067473
A8: Clarkstown | B8: Town | C8: 236289.7436 | D8: 140907.0691 | E8: 29317.06121 | F8: 410180.6274 | G8: 26170.10641 | H8: 8190.408176 | I8: 31248.48463 | J8: 2855.129368 | K8: 42717.91982
A9: Cortlandt | B9: Town | C9: 111555.563 | D9: 85324.52048 | E9: 56589.26459 | F9: 182826.1606 | G9: 2412.716353 | H9: 4046.414017 | I9: 15438.09582 | J9: 912.8398417 | K9: 18622.93569
A10: Croton-on-Hudson | B10: Village | C10: 23627.85961 | D10: 15873.17909 | E10: 695.6174722 | F10: 33425.09079 | G10: 468.1337991 | H10: 785.1163954 | I10: 2995.418188 | J10: 152.0172543 | K10: 2721.435661
A11: Delaware | B11: Town | C11: 7409.394501 | D11: 6244.788239 | E11: 20.81189432 | F11: 17525.95294 | G11: 875.5619679 | H11: 259.7596996 | I11: 991.0491403 | J11: 2662.038642 | K11: 451.3782713
A12: Dobbs Ferry | B12: Village | C12: 26719.58646 | D12: 24904.07723 | E12: 1687.516499 | F12: 38047.36859 | G12: 630.8494504 | H12: 1058.010012 | I12: 4036.576555 | J12: 7.726646358 | K12: 3837.82252
A13: Delaware | B13: Town | C13: 246273.4589 | D13: 252031.9443 | E13: 20932.91665 | F13: 378627.6136 | G13: 5128.008406 | H13: 8600.283687 | I13: 32812.26367 | J13: 191.0821926 | K13: 37532.29517
A14: Hastings-on-Hudson | B14: Village | C14: 21933.77513 | D14: 15594.62425 | E14: 721.3811143 | F14: 29786.64794 | G14: 455.3137781 | H14: 763.6156862 | I14: 2913.387529 | J14: 3.863323179 | K14: 2924.98291
A15: Highland | B15: Town | C15: 7620.875617 | D15: 3573.474552 | E15: 0 | F15: 14812.50717 | G15: 829.6523516 | H15: 246.1393408 | I15: 939.0840168 | J15: 138.6932131 | K15: 329.5629394
A16: Irvington | B16: Village | C16: 18747.31259 | D16: 13083.54847 | E16: 541.0358255 | F16: 24946.56859 | G16: 372.41871 | H16: 624.5907383 | I16: 2382.97209 | J16: 7.726646358 | K16: 2225.732496
A17: Kingston | B17: City | C17: 53832.21768 | D17: 71125.63212 | E17: 2252.444161 | F17: 140379.6999 | G17: 4739.848831 | H17: 2324.508802 | I17: 8868.590677 | J17: 0 | K17: 6722.756106
A18: LaGrange | B18: Town | C18: 39239.15131 | D18: 23574.99815 | E18: 518.5508429 | F18: 68817.20043 | G18: 1209.982993 | H18: 1530.344597 | I18: 5838.6528 | J18: 1830.452734 | K18: 1945.750372
A19: Larchmont | B19: Village | C19: 17244.48528 | D19: 10431.75138 | E19: 399.3359586 | F19: 15016.94886 | G19: 340.1656255 | H19: 570.4984563 | I19: 2176.596314 | J19: 3.863323179 | K19: 2053.861835
A20: Lewisboro | B20: Town | C20: 41543.60759 | D20: 25352.28645 | E20: 27.26192848 | F20: 54435.61157 | G20: 719.9514969 | H20: 1207.444806 | I20: 4606.708195 | J20: 847.0373082 | K20: 3115.716747
A21: Mamaroneck | B21: Town | C21: 84532.70806 | D21: 62319.79081 | E21: 3284.372508 | F21: 101729.6641 | G21: 1691.314628 | H21: 2836.537004 | I21: 10822.10814 | J21: 11.58996954 | K21: 10825.53084
A22: Mamaroneck | B22: Village | C22: 50293.31931 | D22: 45667.84697 | E22: 3156.042288 | F22: 77747.7744 | G22: 1098.055103 | H22: 1841.569795 | I22: 7026.055871 | J22: 0 | K22: 7277.588617
A23: Montebello | B23: Village | C23: 17047.39054 | D23: 9862.544634 | E23: 2112.094991 | F23: 18386.1965 | G23: 1406.938145 | H23: 440.3267417 | I23: 1679.958206 | J23: 714.4833401 | K23: 3093.067311
A24: Mount Kisco | B24: Town & Village | C24: 25174.18833 | D24: 36158.44566 | E24: 3323.503044 | F24: 47809.0611 | G24: 630.9654687 | H24: 1058.204589 | I24: 4037.318913 | J24: 29.10202076 | K24: 4544.58186
A25: New Castle | B25: Town | C25: 60027.80964 | D25: 31944.77029 | E25: 1481.406401 | F25: 64473.5931 | G25: 1019.162666 | H25: 1709.257739 | I25: 6521.251815 | J25: 500.3276745 | K25: 5534.572074
A26: New Paltz | B26: Town | C26: 23656.58606 | D26: 29821.14021 | E26: 198.4506041 | F26: 50283.66606 | G26: 2777.889055 | H26: 1362.327743 | I26: 5197.625884 | J26: 1197.769565 | K26: 2132.938512
A27: New Paltz | B27: Village | C27: 6571.991892 | D27: 17642.26188 | E27: 13.79895536 | F27: 14915.69051 | G27: 1352.542139 | H27: 663.3114726 | I27: 2530.701513 | J27: 0 | K27: 1221.673885
A28: New Rochelle | B28: City | C28: 180752.4596 | D28: 160383.3161 | E28: 8476.221004 | F28: 289423.0724 | G28: 4470.300722 | H28: 7497.229202 | I28: 28603.83103 | J28: 5.794984769 | K28: 25079.37858
A29: North Castle | B29: Town | C29: 36650.95259 | D29: 36054.57045 | E29: 3774.365878 | F29: 42140.93514 | G29: 686.8862844 | H29: 1151.990488 | I29: 4395.135906 | J29: 655.546502 | K29: 4535.13876
A30: North Salem | B30: Town | C30: 16261.76411 | D30: 10312.04014 | E30: 20.68242028 | F30: 21875.71358 | G30: 296.0786754 | H30: 496.5593658 | I30: 1894.49993 | J30: 2088.110488 | K30: 1244.474048
A31: Nyack | B31: Village | C31: 14610.28553 | D31: 20230.06192 | E31: 4583.03233 | F31: 40728.82472 | G31: 2102.946653 | H31: 658.1551939 | I31: 2511.029001 | J31: 39.69351889 | K31: 4317.953506
A32: Orange | B32: County | C32: 838268.9269 | D32: 823740.5308 | E32: 159959.2001 | F32: 2079663.877 | G32: 106132.5605 | H32: 36270.33441 | I32: 173178.5555 | J32: 40787.07377 | K32: 124338.3808
A33: Orangetown | B33: Town | C33: 128717.2087 | D33: 155935.0726 | E33: 38033.52058 | F33: 214799.6742 | G33: 15297.88776 | H33: 4787.750688 | I33: 18266.48326 | J33: 1653.756753 | K33: 32822.83838
A34: Ossining | B34: Town | C34: 88605.87275 | D34: 78929.7818 | E34: 4889.573632 | F34: 150037.0485 | G34: 2185.436524 | H34: 3665.238548 | I34: 13983.81472 | J34: 256.1536957 | K34: 12203.15538
A35: Ossining | B35: Village | C35: 50619.79681 | D35: 46970.82134 | E35: 2241.434146 | F35: 101090.436 | G35: 1453.70917 | H35: 2438.044222 | I35: 9301.757099 | J35: 0 | K35: 6780.053294
A36: Peekskill | B36: City | C36: 52468.98462 | D36: 51159.47907 | E36: 2833.994861 | F36: 99821.52971 | G36: 1368.029663 | H36: 2294.349436 | I36: 8753.525047 | J36: 58.20404151 | K36: 7132.548326
A37: Piermont | B37: Village | C37: 6680.48823 | D37: 3566.50868 | E37: 785.9666265 | F37: 18736.24496 | G37: 780.2507167 | H37: 244.1935753 | I37: 931.6604278 | J37: 11.44114723 | K37: 1189.800245
A38: Port Chester | B38: Village | C38: 59642.54839 | D38: 68249.05878 | E38: 4856.440608 | F38: 104008.4394 | G38: 1680.350899 | H38: 2818.14952 | I38: 10751.95522 | J38: 0 | K38: 9327.341882
A39: Pound Ridge | B39: Town | C39: 22151.63085 | D39: 9184.162877 | E39: 0 | F39: 20245.31404 | G39: 296.0786754 | H39: 496.5593658 | I39: 1894.49993 | J39: 623.9277509 | K39: 1399.270387
A40: Red Hook | B40: Town | C40: 25088.00545 | D40: 19802.15504 | E40: 31.04762424 | F40: 40037.63933 | G40: 870.6800701 | H40: 1101.206007 | I40: 4201.380232 | J40: 1582.030681 | K40: 1687.124653
A41: Red Hook | B41: Village | C41: 5098.138915 | D41: 4203.473206 | E41: 16.7039986 | F41: 9799.108875 | G41: 150.8440337 | H41: 190.7823112 | I41: 727.8829079 | J41: 0 | K41: 324.0171517
A42: Rhinebeck | B42: Town | C42: 19851.13122 | D42: 17277.21913 | E42: 203.8521644 | F42: 34323.78995 | G42: 580.6072241 | H42: 734.3319148 | I42: 2801.662513 | J42: 1070.927322 | K42: 1487.247521
A43: Rhinebeck | B43: Village | C43: 6742.005726 | D43: 7890.663186 | E43: 35.99530133 | F43: 14017.67715 | G43: 204.3817428 | H43: 258.494952 | I43: 986.2238074 | J43: 0 | K43: 603.6962529
A44: Rockland | B44: County | C44: 1451579.134 | D44: 960802.0766 | E44: 166132.4171 | F44: 3596391.861 | G44: 134544.0518 | H44: 57750.71038 | I44: 220333.6082 | J44: 41463.45088 | K44: 205515.4297
A45: Rosendale | B45: Town | C45: 17726.30413 | D45: 10067.14902 | E45: 3.222779709 | F45: 40744.18858 | G45: 1205.147183 | H45: 591.0262828 | I45: 2254.915179 | J45: 243.1984341 | K45: 760.6308286
A46: Saugerties | B46: Town | C46: 51913.45184 | D46: 30235.70055 | E46: 47846.98387 | F46: 120027.3506 | G46: 3864.802868 | H46: 1895.370213 | I46: 7231.318109 | J46: 799.1864843 | K46: 3473.304136
A47: Somers | B47: Town | C47: 64254.56464 | D47: 42646.66217 | E47: 7176.244606 | F47: 104797.3527 | G47: 1185.358866 | H47: 1987.988652 | I47: 7584.680948 | J47: 2060.097693 | K47: 6286.890779
A48: Sullivan | B48: County | C48: 311079.5639 | D48: 229187.3873 | E48: 30763.89622 | F48: 670212.4772 | G48: 44058.07254 | H48: 13374.5113 | I48: 51027.15298 | J48: 20227.19623 | K48: 35332.96014
A49: Tarrytown | B49: Village | C49: 32167.06485 | D49: 40014.30908 | E49: 3967.596026 | F49: 45908.24227 | G49: 654.1691267 | H49: 1097.1199 | I49: 4185.790695 | J49: 21.75666514 | K49: 5377.962771
A50: Tivoli | B50: Village | C50: 2542.239258 | D50: 1595.934615 | E50: 1.565999869 | F50: 4883.758621 | G50: 85.99879127 | H50: 108.7682937 | I50: 414.9786288 | J50: 29.20583935 | K50: 171.4855905
A51: Tusten | B51: Town | C51: 4505.527579 | D51: 2185.737628 | E51: 97.09191265 | F51: 8534.25212 | G51: 496.8076335 | H51: 147.3917397 | I51: 562.3368717 | J51: 270.7522637 | K51: 198.9955989
A52: Ulster | B52: County | C52: 451255.7726 | D52: 349919.2647 | E52: 66172.26626 | F52: 1016518.897 | G52: 36202.62139 | H52: 17754.42953 | I52: 67737.65197 | J52: 15645.11532 | K52: 31687.57118
A53: White Plains | B53: City | C53: 136157.2406 | D53: 180137.6762 | E53: 15174.75434 | F53: 230334.1028 | G53: 3297.993913 | H53: 5531.130412 | I53: 21102.66546 | J53: 23.17993908 | K53: 23180.16028
A54: Woodbury | B54: Town | C54: 28234.6635 | D54: 24816.47569 | E54: 2245.345247 | F54: 63795.78775 | G54: 3231.976782 | H54: 1104.513809 | I54: 4214.000333 | J54: 542.529988 | K54: 3985.56421
A55: Yonkers | B55: City | C55: 409704.9619 | D55: 414386.6582 | E55: 107740.0823 | F55: 784720.5835 | G55: 11368.40017 | H55: 19066.16737 | I55: 72742.26454 | J55: 54.72200908 | K55: 68248.8494
A56: Yorktown | B56: Town | C56: 102371.1594 | D56: 76197.03104 | E56: 12959.12501 | F56: 189179.0295 | G56: 2093.027956 | H56: 3510.258322 | I56: 13392.52585 | J56: 846.5289205 | K56: 10136.12548

Sheet Resources

Sheet Sector Descriptions
B2: SECTORS | C2: DESCRIPTIONS
B3: Buildings (Stationary Energy) | C3: Energy used in Residential, Commercial, Industrial buildings & other non-mobile uses (e.g., electricity, natural gas, fuel oils, wood & propane).
B7: Transportation (Mobile Energy) | C7: Fuel consumption for on-road transportation, passenger & freight rail, aviation, marine transit & off-road vehicles.
B8: Waste & Wastewater Treatment | C8: Non-energy process emissions from landfills & wastewater treatment plants or septic systems. (e.g., methane emissions from anaerobic decay).
B9: Industrial Processes | C9: Non-energy process emissions from industrial activity & fugitive emissions from fuel systems (e.g., C02 from cement production, A/C coolants, & leakages).
B10: Agriculture | C10: Non-energy emissions from crops & livestock (e.g., methane & nitrous oxide emissions from fertilizers).
B11: Energy Supply | C11: Energy generation & fugitive emissions including energy losses during transmission & distribution of electricity and natural gas.
